bitfinex-derivatives/quotes_BTCF0:USTF0_20240905
["timestamp","ask_amount","ask_price","bid_price","bid_amount"]
[1725529813795,0.24,56830.0,56828.0,0.15810199]
[1725529813990,0.002,56829.0,56828.0,0.07011299]
[1725529814295,0.002,56829.0,56827.0,0.3608]
[1725529814296,0.087987,56829.0,56827.0,0.3608]
[1725529814498,0.002,56828.0,56827.0,0.3608]
[1725529814800,0.002,56828.0,56827.0,0.39274721]
[1725529815199,0.089989,56828.0,56827.0,0.39274721]
[1725529815497,0.450789,56828.0,56827.0,0.03194721]
[1725529815704,0.087994,56825.0,56819.0,0.448801]
[1725529816003,0.242,56820.0,56819.0,0.448801]
[1725529816792,0.242,56820.0,56819.0,0.088001]
[1725529817892,0.243,56820.0,56819.0,0.12017605]
[1725529818314,0.244,56820.0,56819.0,0.12017605]
[1725529820295,0.004,56820.0,56819.0,0.88817605]
[1725529821001,0.004,56820.0,56819.0,0.36017605]
[1725529821194,0.004,56820.0,56819.0,0.12017605]
[1725529821904,0.004,56820.0,56819.0,0.12117605]
[1725529822599,0.003,56820.0,56819.0,0.12017605]
[1725529822801,0.004,56820.0,56819.0,0.12117605]
[1725529823100,0.24,56820.0,56819.0,0.12117605]
[1725529823691,0.24,56822.0,56820.0,0.088001]
[1725529823894,0.24,56822.0,56821.0,0.002]
[1725529824500,0.24026395,56825.0,56821.0,0.002]
[1725529824707,0.24026395,56825.0,56824.0,0.450795]
[1725529824891,0.00026395,56825.0,56824.0,0.450795]
[1725529825805,0.00126395,56825.0,56824.0,0.450795]
[1725529826008,0.00126395,56825.0,56824.0,0.600595]
[1725529827396,0.00026395,56825.0,56824.0,0.600595]
[1725529827602,0.24,56837.0,56824.0,1.730555]
[1725529827798,0.24,56836.0,56831.0,0.24]
[1725529828004,0.24,56836.0,56835.0,0.087978]
[1725529829514,0.001,56836.0,56835.0,0.327978]
[1725529829704,0.001,56837.0,56835.0,0.688778]
[1725529829903,0.001,56837.0,56836.0,0.1458]
[1725529830109,0.001,56837.0,56836.0,0.67364]
[1725529830405,0.3608,56852.0,56837.0,0.615775]
[1725529830406,0.6008,56852.0,56837.0,0.615775]
[1725529830610,0.24,56852.0,56851.0,0.002]
[1725529830811,0.2875,56854.0,56851.0,0.002]
[1725529831008,0.2875,56854.0,56853.0,0.002]
[1725529831909,0.2875,56854.0,56853.0,0.00131131]
[1725529832307,0.387448,56854.0,56853.0,0.00131131]
[1725529832512,0.400448,56854.0,56853.0,0.00131131]
[1725529833504,0.400448,56854.0,56849.0,0.3608]
[1725529833706,0.242,56850.0,56849.0,0.3608]
[1725529835208,0.242,56850.0,56849.0,0.39316057]
[1725529836116,0.267,56850.0,56849.0,0.39316057]
[1725529836412,0.027,56850.0,56849.0,0.39316057]
[1725529836612,0.027,56850.0,56849.0,0.87301657]
[1725529837116,0.027,56850.0,56849.0,1.40073657]
[1725529837614,0.027,56850.0,56849.0,0.87301657]
[1725529841604,0.00026395,56859.0,56858.0,0.087942]
[1725529841813,0.001,56865.0,56864.0,0.087933]
[1725529842116,0.04305992,56868.0,56864.0,0.37150474]
[1725529842326,0.1376,56871.0,56870.0,0.087924]
[1725529842619,0.18065744,56871.0,56870.0,0.087924]
[1725529843420,0.1376,56871.0,56870.0,0.087924]
[1725529843813,0.1376,56871.0,56870.0,0.11967665]
[1725529844914,0.1396,56871.0,56870.0,0.12067665]
[1725529845520,0.1396,56871.0,56870.0,0.12167665]
[1725529845521,0.1406,56871.0,56870.0,0.12167665]
[1725529845723,0.003,56871.0,56870.0,0.48247665]
[1725529848216,0.002,56871.0,56870.0,0.48147665]
[1725529848521,0.011,56871.0,56870.0,0.48147665]
[1725529848719,0.011,56871.0,56870.0,0.48247665]
[1725529848720,0.023,56871.0,56870.0,0.48247665]
[1725529851310,0.00026395,56876.0,56875.0,0.087916]
[1725529851513,0.00026395,56876.0,56875.0,0.690716]
[1725529852824,0.10927362,56876.0,56875.0,0.691716]
[1725529853318,0.3424184,56876.0,56875.0,0.779632]
[1725529853521,0.15638907,56888.0,56875.0,1.219196]
[1725529853723,0.15638907,56889.0,56887.0,0.3628]
[1725529853917,0.04304239,56888.0,56887.0,0.3628]
[1725529854515,0.04304239,56888.0,56887.0,0.450697]
[1725529854914,0.15638907,56888.0,56887.0,0.450697]
[1725529855116,0.05395062,56888.0,56887.0,0.451697]
[1725529855316,0.15646895,56888.0,56887.0,0.3638]
[1725529855523,0.09699301,56888.0,56887.0,0.3628]
[1725529855729,0.09699301,56888.0,56887.0,0.3648]
[1725529856436,0.09699227,56888.0,56887.0,0.3648]
[1725529856819,0.09699227,56888.0,56887.0,0.452697]
[1725529857329,0.04304239,56888.0,56887.0,0.452697]
[1725529857528,0.05394965,56888.0,56887.0,0.452697]
[1725529857726,0.15646895,56889.0,56887.0,0.452696]
[1725529857934,0.15646895,56889.0,56888.0,0.089896]
[1725529858431,0.15646895,56889.0,56888.0,0.002]
[1725529858732,0.09699204,56889.0,56888.0,0.002]
[1725529859442,0.09699204,56889.0,56888.0,0.003]
[1725529860137,0.09699558,56889.0,56888.0,0.003]
[1725529860429,0.09899558,56889.0,56888.0,0.003]
[1725529860628,0.29144288,56889.0,56888.0,0.003]
[1725529860838,0.1944473,56889.0,56888.0,0.003]
[1725529861036,0.1944473,56889.0,56888.0,0.03498189]
[1725529861037,0.002,56889.0,56888.0,0.03498189]
[1725529861242,0.089894,56889.0,56888.0,0.03598189]
[1725529862325,0.089894,56889.0,56888.0,0.004]
[1725529862326,0.177788,56889.0,56888.0,0.004]
[1725529863744,0.177788,56889.0,56888.0,0.03575073]
[1725529864637,0.177788,56889.0,56888.0,0.004]
[1725529864831,0.175808,56883.0,56882.0,0.00026371]
[1725529865027,1.3702,56883.0,56867.0,0.002]
[1725529865242,0.329927,56868.0,56867.0,0.002]
[1725529865548,0.327927,56868.0,56867.0,0.002]
[1725529865732,0.327927,56868.0,56867.0,0.034093]
[1725529865733,0.24,56868.0,56867.0,0.034093]
[1725529865935,0.24,56868.0,56867.0,0.089928]
[1725529866135,0.24,56868.0,56867.0,0.087928]
[1725529866442,0.24,56868.0,56863.0,0.00900795]
[1725529866642,0.002,56864.0,56863.0,0.00900795]
[1725529867443,0.002,56864.0,56862.0,0.03115987]
[1725529867741,0.327927,56868.0,56862.0,0.03115987]
[1725529867742,0.002,56863.0,56862.0,0.03115987]
[1725529867933,0.002,56863.0,56862.0,0.03995146]
[1725529868647,0.6028,56863.0,56862.0,0.03115987]
[1725529868829,0.6028,56863.0,56862.0,0.03215987]
[1725529869840,0.690735,56863.0,56862.0,0.03215987]
[1725529870036,0.693735,56863.0,56862.0,0.03315987]
[1725529870341,0.453735,56863.0,56862.0,0.03315987]
[1725529871141,0.3658,56863.0,56862.0,0.03315987]
[1725529871340,0.3658,56863.0,56862.0,0.03215987]
[1725529871544,0.3658,56863.0,56862.0,0.03315987]
[1725529871839,0.005,56863.0,56862.0,0.03315987]
[1725529876450,0.005,56863.0,56862.0,0.12109587]
[1725529876950,0.005,56863.0,56862.0,0.26019587]
[1725529879459,0.005,56863.0,56862.0,0.50019587]
[1725529885650,0.005,56863.0,56862.0,0.17225987]
[1725529885952,0.245,56863.0,56862.0,0.03315987]
[1725529887055,0.245,56863.0,56862.0,0.03215987]
[1725529887259,0.242,56863.0,56862.0,0.03215987]
[1725529887452,0.245,56863.0,56862.0,0.03315987]
[1725529888457,0.005,56863.0,56862.0,0.03315987]
[1725529888655,0.005,56863.0,56862.0,0.36109587]
[1725529889155,0.005,56863.0,56862.0,0.51189587]
[1725529890354,0.005,56863.0,56862.0,0.12109587]
[1725529890866,0.005,56863.0,56862.0,0.36109587]
[1725529895257,0.005,56863.0,56862.0,0.03315987]
[1725529895859,0.0480616,56863.0,56862.0,0.03315987]
[1725529898061,0.005,56863.0,56862.0,0.03315987]
[1725529899167,0.092935,56863.0,56862.0,0.03315987]
[1725529900967,0.381635,56863.0,56862.0,0.03315987]
[1725529903965,0.2937,56863.0,56862.0,0.03315987]
[1725529904161,0.151,56863.0,56862.0,0.27315987]
[1725529904474,0.005,56863.0,56862.0,0.27315987]
[1725529905461,0.005,56863.0,56862.0,0.34307739]
[1725529905966,0.005,56863.0,56862.0,0.27315987]
[1725529907676,0.005,56863.0,56862.0,0.36109587]
[1725529913072,0.005,56863.0,56862.0,0.43101339]
[1725529917276,0.005,56863.0,56862.0,0.36109587]
[1725529920771,0.005,56863.0,56862.0,0.43139277]
[1725529920968,0.005,56863.0,56862.0,0.36109587]
[1725529921175,0.005,56863.0,56862.0,0.43139277]
[1725529922767,0.005,56863.0,56862.0,0.03315987]
[1725529923480,0.087947,56855.0,56854.0,0.0702969]
[1725529923780,0.087947,56855.0,56846.0,0.10487629]
[1725529923781,0.62921223,56855.0,56846.0,0.0702969]
[1725529923971,0.62921223,56855.0,56844.0,0.3608]
[1725529923972,0.329959,56847.0,56844.0,0.0702969]
[1725529924170,0.002,56845.0,56843.0,0.0702969]
[1725529924477,0.329959,56847.0,56841.0,0.3608]
[1725529924679,0.087962,56846.0,56841.0,0.3608]
[1725529925181,0.242,56847.0,56841.0,0.4310969]
[1725529925376,0.002,56847.0,56846.0,0.242]
[1725529925577,0.002,56847.0,56846.0,0.6028]
[1725529926568,0.004,56847.0,56846.0,0.6028]
[1725529927279,0.01,56847.0,56846.0,0.51591179]
[1725529928684,0.01,56847.0,56846.0,0.60387279]
[1725529928869,0.00026371,56850.0,56846.0,1.14842347]
[1725529929072,0.00026371,56850.0,56849.0,0.242]
[1725529929776,0.00026371,56850.0,56849.0,0.5720294]
[1725529929981,0.00526371,56850.0,56849.0,0.38501267]
[1725529930170,0.00926371,56850.0,56849.0,0.61603288]
[1725529930782,0.01726371,56850.0,56849.0,0.61803288]
[1725529931878,0.01726371,56850.0,56849.0,0.67848627]
[1725529931879,0.008,56850.0,56849.0,0.67848627]
[1725529932076,0.2861,56861.0,56857.0,0.087943]
[1725529932283,0.2861,56861.0,56860.0,0.002]
[1725529933377,0.2881,56861.0,56860.0,0.002]
[1725529933970,0.2881,56861.0,56860.0,0.003]
[1725529934173,0.2881,56861.0,56860.0,0.004]
[1725529935777,0.2881,56861.0,56860.0,0.03617113]
[1725529935979,0.2881,56861.0,56860.0,0.004]
[1725529936173,0.2881,56861.0,56856.0,0.24]
[1725529936174,1.6557,56861.0,56856.0,0.02749965]
[1725529936381,0.087945,56856.0,56855.0,0.00026371]
[1725529936579,0.617585,56856.0,56855.0,0.00026371]
[1725529936882,1.215585,56856.0,56855.0,0.00026371]
[1725529937380,0.002,56857.0,56856.0,0.087945]
[1725529937587,0.002,56857.0,56856.0,0.089945]
[1725529937784,0.002,56857.0,56856.0,0.450745]
[1725529939983,0.003,56857.0,56856.0,0.452745]
[1725529940673,0.003,56857.0,56856.0,0.004]
[1725529940674,0.243,56857.0,56856.0,0.004]
[1725529940992,0.330944,56857.0,56856.0,0.004]
[1725529943493,0.243,56857.0,56856.0,0.004]
[1725529943703,0.003,56857.0,56856.0,0.244]
[1725529943991,0.003,56857.0,56856.0,0.331945]
[1725529944195,0.003,56857.0,56856.0,0.56293649]
[1725529944386,0.3608,56860.0,56859.0,0.087941]
[1725529944587,0.3608,56860.0,56859.0,0.089941]
[1725529946296,0.3608,56860.0,56859.0,0.090941]
[1725529946694,0.3608,56860.0,56859.0,0.091941]
[1725529947497,0.24,56864.0,56861.0,0.087937]
[1725529947691,0.24,56864.0,56863.0,0.002]
[1725529948407,0.00026371,56866.0,56863.0,0.242]
[1725529948698,0.00026371,56866.0,56864.0,0.087932]
[1725529948897,0.00026371,56866.0,56865.0,0.002]
[1725529949293,0.00026371,56866.0,56865.0,0.089931]
[1725529950096,0.00026371,56866.0,56865.0,0.090931]
[1725529950300,0.00026371,56866.0,56865.0,0.091931]
[1725529952995,0.00026371,56866.0,56865.0,0.37547503]
[1725529953398,0.2932,56875.0,56865.0,0.37547503]
[1725529953399,0.2932,56875.0,56871.0,0.087922]
[1725529953597,0.2932,56875.0,56874.0,0.002]
[1725529953801,0.2932,56875.0,56874.0,0.089918]
[1725529953996,0.2932,56875.0,56874.0,0.690718]
[1725529954997,0.38116755,56875.0,56874.0,0.3608]
[1725529955493,0.38116755,56875.0,56874.0,0.3618]
[1725529955893,0.38116755,56875.0,56874.0,0.3067687]
[1725529956295,0.38116755,56875.0,56874.0,0.088918]
[1725529956789,0.38116755,56875.0,56874.0,0.089918]
[1725529956991,0.38116809,56875.0,56874.0,0.03332374]
[1725529957196,0.46908409,56875.0,56866.0,0.087929]
[1725529957396,0.002,56867.0,56866.0,0.24]
[1725529957601,0.08996809,56867.0,56866.0,0.24]
[1725529958505,0.07897161,56867.0,56866.0,0.32893]
[1725529959000,0.089969,56867.0,56866.0,0.32993]
[1725529959404,0.089969,56867.0,56866.0,0.08993]
[1725529959601,0.089969,56867.0,56866.0,0.32993]
[1725529961307,0.08996825,56867.0,56866.0,0.32993]
[1725529961506,0.08996825,56867.0,56866.0,0.29689697]
[1725529962415,0.08996825,56867.0,56866.0,0.15393584]
[1725529962813,0.08996825,56867.0,56866.0,0.51473584]
[1725529963206,0.41789625,56867.0,56866.0,0.001]
[1725529963411,0.46095488,56867.0,56866.0,0.001]
[1725529963710,1.58851715,56867.0,56866.0,0.001]
[1725529964905,1.58851715,56867.0,56861.0,0.00026371]
[1725529965104,0.6028,56862.0,56851.0,0.24]
[1725529965308,0.002,56854.0,56851.0,0.24]
[1725529965510,0.08997052,56854.0,56853.0,0.28380244]
[1725529965709,0.08797052,56854.0,56853.0,0.28380244]
[1725529966200,0.08797052,56854.0,56853.0,0.40295329]
[1725529966607,0.08797052,56854.0,56853.0,0.11915085]
[1725529966810,0.08797142,56854.0,56853.0,0.03220085]
[1725529967213,0.08797142,56854.0,56853.0,0.08479034]
[1725529967626,0.08797142,56854.0,56853.0,0.03220085]
[1725529968813,0.08897142,56854.0,56853.0,0.03320085]
[1725529969521,0.08897142,56854.0,56851.0,0.29258949]
[1725529969813,0.002,56852.0,56851.0,0.29258949]
[1725529970119,0.08997142,56852.0,56851.0,0.29258949]
[1725529970920,0.08997142,56852.0,56851.0,0.24]
[1725529971310,0.08997142,56852.0,56851.0,0.29258949]
[1725529971518,0.08997142,56852.0,56851.0,0.21558845]
[1725529971720,0.08997142,56852.0,56851.0,0.16399896]
[1725529972021,0.08997142,56852.0,56851.0,0.1965467]
[1725529972221,0.08997142,56852.0,56851.0,0.24913619]
[1725529973018,0.09297142,56852.0,56851.0,0.24913619]
[1725529973414,0.09297177,56852.0,56851.0,0.24913619]
[1725529973626,0.09297177,56852.0,56851.0,0.03354774]
[1725529974918,0.09297177,56852.0,56851.0,0.001]
[1725529975126,0.09297177,56852.0,56849.0,0.07508836]
[1725529975326,0.002,56850.0,56849.0,0.07508836]
[1725529975520,0.08997177,56850.0,56849.0,0.07508836]
[1725529975922,0.08997204,56850.0,56849.0,0.07508836]
[1725529977125,0.08997204,56850.0,56849.0,0.10695052]
[1725529977630,0.08997204,56850.0,56848.0,0.24026371]
[1725529977817,0.08997204,56849.0,56848.0,0.32822171]
[1725529979630,0.09397204,56849.0,56848.0,0.32822171]
[1725529980828,0.09397204,56849.0,56848.0,0.23555144]
[1725529983424,0.09397204,56849.0,56848.0,0.15854752]
[1725529984128,0.09397204,56849.0,56848.0,0.07058952]
[1725529985033,0.09397204,56849.0,56847.0,0.05954299]
[1725529985227,0.07697161,56848.0,56847.0,0.05954299]
[1725529985528,0.08997222,56848.0,56847.0,0.05954299]
[1725529988033,0.09297222,56848.0,56847.0,0.05954299]
[1725529988229,0.09297222,56848.0,56847.0,0.02905149]
[1725529988429,0.09297222,56848.0,56843.0,0.07056061]
[1725529988430,0.45377222,56848.0,56843.0,0.00026371]
[1725529988632,0.002,56844.0,56843.0,0.00026371]
[1725529988824,0.17793622,56844.0,56843.0,0.00026371]
[1725529989433,0.17793622,56844.0,56843.0,0.02843968]
[1725529989632,0.087966,56843.0,56836.0,0.0702969]
[1725529989829,0.002,56837.0,56836.0,0.0702969]
[1725529990025,0.01300061,56837.0,56836.0,0.0702969]
[1725529990337,0.08997222,56837.0,56836.0,0.0702969]
[1725529991031,0.08997222,56837.0,56836.0,0.0782969]
[1725529991435,0.08997222,56837.0,56836.0,0.0782081]
[1725529991640,0.08997222,56837.0,56836.0,0.10730623]
[1725529991825,0.08997222,56837.0,56836.0,0.11530623]
[1725529992324,0.08997222,56837.0,56836.0,0.04509813]
[1725529994234,0.08997222,56837.0,56836.0,0.13307413]
[1725529994937,0.07897161,56837.0,56836.0,0.13307413]
[1725529995124,0.08997426,56837.0,56836.0,0.13307413]
[1725529996441,0.05841044,56837.0,56836.0,0.13307413]
[1725529996734,0.24,56841.0,56838.0,0.087973]
[1725529996925,0.24,56841.0,56840.0,0.002]
[1725529998333,0.24,56841.0,56840.0,0.005]
[1725529998839,0.24,56841.0,56840.0,0.008]
[1725530001239,0.36106371,56842.0,56840.0,0.09597]
[1725530001442,0.36106371,56842.0,56841.0,0.002]
[1725530002033,0.36106371,56842.0,56841.0,0.00180001]
[1725530003034,0.36106371,56842.0,56841.0,0.002]
[1725530003233,0.60106371,56842.0,56841.0,0.002]
[1725530003440,0.68903071,56842.0,56841.0,0.002]
[1725530004143,0.68903071,56842.0,56841.0,0.004]
[1725530004339,0.70003513,56842.0,56841.0,0.004]
[1725530004937,0.46003513,56842.0,56841.0,0.004]
[1725530005242,0.70003513,56842.0,56841.0,0.004]
[1725530006338,0.77706333,56842.0,56841.0,0.004]
[1725530007931,0.77706206,56842.0,56841.0,0.004]
[1725530008339,0.77706206,56842.0,56841.0,0.00360001]
[1725530011439,0.77706204,56842.0,56841.0,0.00360001]
[1725530013935,0.087969,56841.0,56838.0,0.08241571]
[1725530014136,0.242,56839.0,56838.0,0.08241571]
[1725530014436,0.3190282,56839.0,56838.0,0.08241571]
[1725530014843,0.33003135,56839.0,56838.0,0.08241571]
[1725530015046,0.33003135,56839.0,56838.0,0.08841571]
[1725530016048,0.19003135,56839.0,56838.0,0.09441571]
[1725530016745,0.09003135,56839.0,56838.0,0.54302917]
[1725530017044,0.09003135,56839.0,56838.0,0.559773]
[1725530018435,0.09003135,56839.0,56838.0,0.459773]
[1725530020546,0.0790282,56839.0,56838.0,0.459773]
[1725530020747,0.09003052,56839.0,56838.0,0.459773]
[1725530022537,0.09003052,56839.0,56838.0,0.559773]
[1725530022849,0.04660694,56839.0,56838.0,1.99699155]
[1725530023047,0.00259885,56839.0,56838.0,1.90959465]
[1725530023659,0.00259885,56839.0,56838.0,2.07273015]
[1725530024352,0.00259885,56839.0,56838.0,1.99756765]
[1725530026056,0.00259885,56839.0,56838.0,2.04959465]
[1725530026654,0.00259885,56839.0,56838.0,2.15496897]
[1725530027042,0.00026371,56842.0,56841.0,0.087969]
[1725530027246,0.00026371,56842.0,56841.0,0.46401765]
[1725530027452,0.00026371,56842.0,56841.0,1.59181765]
[1725530027654,0.00026371,56842.0,56841.0,1.73521765]
[1725530028251,0.00026371,56842.0,56841.0,1.82299436]
[1725530028457,0.00026371,56842.0,56841.0,1.73521765]
[1725530028655,0.00026371,56842.0,56841.0,1.13521765]
[1725530029369,0.00026371,56842.0,56841.0,1.13921765]
[1725530029547,0.00026371,56842.0,56841.0,1.22696444]
[1725530030555,0.00026371,56842.0,56841.0,1.31493344]
[1725530030761,7.1e-07,56842.0,56841.0,1.86885379]
[1725530030944,0.01100031,56842.0,56841.0,1.91513328]
[1725530031345,0.6658,56864.0,56857.0,0.087943]
[1725530031561,0.24,56861.0,56857.0,0.087943]
[1725530031761,0.07699186,56860.0,56857.0,0.087943]
[1725530032150,0.07699186,56859.0,56857.0,0.07914871]
[1725530032353,0.07699186,56858.0,56857.0,0.07914871]
[1725530032549,0.07699186,56858.0,56857.0,0.08014871]
[1725530032761,0.07699186,56858.0,56857.0,0.08114871]
[1725530032952,0.07699186,56858.0,56857.0,0.08014871]
[1725530033258,0.07699186,56858.0,56857.0,0.08114871]
[1725530033456,0.08199186,56858.0,56857.0,0.08114871]
[1725530035957,0.08199186,56858.0,56857.0,0.1097304]
[1725530038948,0.44279186,56858.0,56857.0,0.03058169]
[1725530039353,0.54173403,56858.0,56857.0,0.02752353]
[1725530039553,0.087944,56857.0,56852.0,0.00026371]
[1725530039751,0.242,56853.0,56852.0,0.00026371]
[1725530040157,0.32999183,56853.0,56852.0,0.00026371]
[1725530040659,0.32999183,56853.0,56852.0,0.00126371]
[1725530040850,0.08999183,56853.0,56852.0,0.03084166]
[1725530041558,0.08999183,56853.0,56852.0,0.11879366]
[1725530043252,0.09599183,56853.0,56852.0,0.03084166]
[1725530043461,0.54474183,56853.0,56852.0,0.03084166]
[1725530045565,0.54474183,56853.0,56852.0,0.002]
[1725530047670,0.78474183,56853.0,56852.0,0.002]
[1725530048061,0.64474183,56853.0,56852.0,0.002]
[1725530048566,0.10694997,56853.0,56852.0,0.002]
[1725530048765,0.01899997,56853.0,56852.0,0.002]
[1725530048956,0.01899997,56853.0,56852.0,0.089952]
[1725530051073,0.008,56853.0,56852.0,0.089952]
[1725530051251,0.01899992,56853.0,56852.0,0.089952]
[1725530054264,0.008,56853.0,56852.0,0.089952]
[1725530054457,0.0189999,56853.0,56852.0,0.089952]
[1725530056970,0.0189999,56853.0,56852.0,0.16025531]
[1725530058761,0.0189999,56853.0,56852.0,0.089952]
[1725530059665,0.0189999,56853.0,56852.0,0.16025531]
[1725530060651,0.01900003,56853.0,56852.0,0.16025531]
[1725530061660,0.01900003,56853.0,56852.0,0.089952]
[1725530062166,0.01899984,56853.0,56852.0,0.089952]
[1725530063771,0.008,56853.0,56852.0,0.089952]
[1725530064074,0.24026371,56864.0,56852.0,0.002]
[1725530064265,0.24026371,56864.0,56862.0,0.002]
[1725530064565,0.24026371,56864.0,56862.0,0.01066184]
[1725530064767,0.24026371,56864.0,56862.0,0.002]
[1725530065172,0.41709219,56863.0,56861.0,0.05694421]
[1725530065361,0.42209219,56863.0,56862.0,0.00888096]
[1725530065759,0.41109317,56863.0,56862.0,0.00888096]
[1725530065969,0.41109317,56863.0,56862.0,0.00988096]
[1725530066173,0.41109317,56863.0,56862.0,0.01088096]
[1725530066367,0.42209208,56863.0,56862.0,0.01088096]
[1725530066564,0.09299208,56863.0,56862.0,0.01088096]
[1725530068975,0.08199317,56863.0,56862.0,0.01088096]
[1725530069264,0.09299207,56863.0,56862.0,0.01088096]
[1725530069971,0.55379207,56863.0,56862.0,0.01088096]
[1725530070681,0.55083308,56863.0,56862.0,0.01088096]
[1725530070975,0.65083308,56863.0,56862.0,0.01088096]
[1725530071876,0.65083316,56863.0,56862.0,0.01088096]
[1725530072277,0.55083316,56863.0,56862.0,0.01088096]
[1725530072483,0.80829101,56863.0,56862.0,0.01088096]
[1725530073870,0.65083316,56863.0,56862.0,0.01088096]
[1725530074875,0.80829003,56863.0,56862.0,0.01088096]
[1725530075080,0.65083218,56863.0,56862.0,0.01088096]
[1725530075285,0.63983328,56863.0,56862.0,0.01088096]
[1725530075482,0.80828982,56863.0,56862.0,0.01088096]
[1725530075782,0.65083197,56863.0,56862.0,0.01088096]
[1725530075979,0.80828982,56863.0,56862.0,0.01088096]
[1725530076181,0.44748982,56863.0,56862.0,0.01088096]
[1725530076476,0.37796697,56863.0,56862.0,0.002]
[1725530077071,0.087955,56850.0,56849.0,0.3608]
[1725530077271,0.087955,56850.0,56844.0,0.087963]
[1725530077272,0.087957,56849.0,56844.0,0.087963]
[1725530077582,0.087957,56849.0,56840.0,0.087969]
[1725530077583,0.1,56843.0,56840.0,0.087969]
[1725530077781,0.102,56841.0,56840.0,0.087969]
[1725530077989,0.23305511,56841.0,56840.0,0.087969]
[1725530078579,0.23305842,56841.0,56840.0,0.087969]
[1725530078785,0.18999517,56841.0,56840.0,0.087969]
[1725530078980,0.18999517,56841.0,56840.0,0.091969]
[1725530080076,0.08999517,56841.0,56840.0,0.091969]
[1725530080678,0.08999517,56841.0,56840.0,0.334969]
[1725530080982,0.0710729,56841.0,56840.0,0.334969]
[1725530081176,0.011002,56841.0,56840.0,0.334969]
[1725530083978,0.011002,56841.0,56840.0,0.007]
[1725530084381,0.098971,56841.0,56840.0,0.007]
[1725530084585,0.0989716,56841.0,56840.0,0.007]
[1725530087287,0.0110026,56841.0,56840.0,0.007]
[1725530087688,0.24,56842.0,56840.0,0.007]
[1725530087888,0.24,56842.0,56841.0,0.002]
[1725530088279,0.25100267,56842.0,56841.0,0.002]
[1725530089688,0.25100267,56842.0,56841.0,0.004]
[1725530090981,0.25100267,56842.0,56841.0,0.006]
[1725530092383,0.01100267,56842.0,56841.0,0.006]
[1725530093484,0.24026371,56852.0,56841.0,0.006]
[1725530093683,0.24026371,56852.0,56846.0,0.24]
[1725530093684,0.01100157,56849.0,56846.0,0.24]
[1725530093992,0.24026371,56852.0,56849.0,0.002]
[1725530094190,0.24026371,56852.0,56851.0,0.002]
[1725530095696,0.24126371,56852.0,56851.0,0.003]
[1725530096085,0.32921571,56852.0,56851.0,0.003]
[1725530096596,0.33021571,56852.0,56851.0,0.004]
[1725530097997,0.69101571,56852.0,56851.0,0.004]
[1725530099889,0.33021571,56852.0,56851.0,0.004]
[1725530100085,0.69101571,56852.0,56851.0,0.004]
[1725530100993,0.60306371,56852.0,56851.0,0.004]
[1725530101395,0.61406477,56852.0,56851.0,0.004]
[1725530101594,0.70201677,56852.0,56851.0,0.004]
[1725530102191,0.70201677,56852.0,56851.0,0.03600022]
[1725530102384,0.70201677,56852.0,56851.0,0.004]
[1725530103091,0.69101571,56852.0,56851.0,0.004]
[1725530103298,0.70201679,56852.0,56851.0,0.004]
[1725530104493,0.70201679,56852.0,56851.0,0.03555982]
[1725530104698,0.37406479,56852.0,56851.0,0.12351282]
[1725530105595,0.37406479,56852.0,56851.0,0.03555982]
[1725530106189,0.45107199,56852.0,56851.0,0.03555982]
[1725530107393,0.37406479,56852.0,56851.0,0.36351282]
[1725530107591,0.37406479,56852.0,56851.0,0.41609901]
[1725530107993,0.37406479,56852.0,56851.0,0.08826538]
[1725530108193,0.61406479,56852.0,56851.0,0.03555982]
[1725530109499,0.60306371,56852.0,56851.0,0.03555982]
[1725530109701,0.61406459,56852.0,56851.0,0.03555982]
[1725530113393,1.14174459,56852.0,56851.0,0.03555982]
[1725530113588,2.03974459,56852.0,56851.0,0.03555982]
[1725530114000,2.15983003,56852.0,56851.0,0.03555982]
[1725530114505,2.33573403,56852.0,56851.0,0.004]
[1725530115804,2.3357352,56852.0,56851.0,0.00360001]
[1725530116004,2.29265997,56852.0,56851.0,0.00360001]
[1725530116804,2.29265997,56852.0,56851.0,0.002]
[1725530117701,1.60470797,56852.0,56851.0,0.002]
[1725530119101,1.60470866,56852.0,56851.0,0.002]
[1725530119494,1.07702866,56852.0,56851.0,0.002]
[1725530119694,1.60470866,56852.0,56851.0,0.002]
[1725530119906,1.07702866,56852.0,56851.0,0.002]
[1725530121607,1.07702866,56852.0,56851.0,0.00180001]
[1725530122094,1.06602709,56852.0,56851.0,0.00180001]
[1725530122295,1.07702846,56852.0,56851.0,0.00180001]
[1725530124606,0.61406508,56852.0,56851.0,0.00180001]
[1725530124810,0.46201708,56852.0,56851.0,0.08975301]
[1725530125196,0.46201708,56852.0,56851.0,0.00180001]
[1725530125394,0.37406508,56852.0,56851.0,0.00180001]
[1725530125597,0.37406508,56852.0,56851.0,0.08975301]
[1725530125795,0.36306371,56852.0,56851.0,0.08975301]
[1725530126002,0.37406444,56852.0,56851.0,0.08975301]
[1725530126406,0.01326444,56852.0,56851.0,0.45055301]
[1725530126601,0.00226371,56852.0,56851.0,0.45055301]
[1725530128204,0.00226371,56852.0,56851.0,0.08975301]
[1725530129311,0.00226371,56852.0,56851.0,0.45055301]
[1725530129518,0.01326359,56852.0,56851.0,0.45055301]
[1725530129910,0.0902613,56852.0,56851.0,0.45055301]
[1725530130307,0.01326359,56852.0,56851.0,0.45055301]
[1725530130616,0.00226371,56852.0,56851.0,0.45055301]
[1725530130814,0.24226371,56852.0,56851.0,0.00180001]
[1725530131122,0.24226371,56852.0,56846.0,0.05270556]
[1725530131123,0.33026282,56852.0,56846.0,0.05270556]
[1725530131314,0.33026282,56852.0,56836.0,0.10523472]
[1725530131315,0.087965,56843.0,56842.0,0.05272917]
[1725530131503,0.087969,56841.0,56839.0,0.03215643]
[1725530131703,0.087974,56838.0,56834.0,0.05272917]
[1725530131919,0.3628,56835.0,56832.0,0.07023562]
[1725530132219,0.3628,56835.0,56832.0,0.0089737]
[1725530132220,0.24,56833.0,56832.0,0.0089737]
[1725530132420,0.25099964,56833.0,56830.0,0.07023562]